bitfinex/quotes_SOLUSD_20220211
["timestamp","ask_amount","ask_price","bid_price","bid_amount"]
[1644615908688,11.27795,97.928,97.88,15.3294]
[1644615908888,5.107,97.927,97.88,15.3294]
[1644615909088,11.27795,97.926,97.88,15.3294]
[1644615909294,11.27795,97.929,97.88,15.3294]
[1644615909696,45.05998078,97.928,97.871,23.969]
[1644615909898,15.332,97.92,97.871,23.969]
[1644615910096,5.107,97.919,97.852,5.107]
[1644615910499,5.108,97.927,97.852,5.107]
[1644615911219,5.108,97.927,97.853,48.44891605]
[1644615911711,15.3334,97.91,97.853,48.44891605]
[1644615911911,29.186,97.939,97.853,48.44891605]
[1644615912112,5.107,97.926,97.854,2.38366791]
[1644615912314,5.107,97.938,97.855,5.107]
[1644615912515,5.107,97.948,97.855,5.107]
[1644615912713,15.3277,97.95,97.86,15.332]
[1644615912914,5.107,97.947,97.861,5.106]
[1644615913112,5.107,97.949,97.855,5.107]
[1644615913313,5.107,97.949,97.86,51.0909]
[1644615913914,5.107,97.949,97.88,15.3273]
[1644615914114,5.107,97.949,97.881,41.15669378]
[1644615914314,38.072465,97.948,97.881,41.15669378]
[1644615914513,15.3289,97.94,97.881,41.15669378]
[1644615914719,22.39862044,97.938,97.881,41.15669378]
[1644615914916,11.274473,97.937,97.861,5.106]
[1644615915115,5.107,97.937,97.861,5.106]
[1644615915520,15.3307,97.93,97.854,22.5416]
[1644615915717,5.107,97.929,97.854,22.5416]
[1644615915917,5.107,97.937,97.855,44.03220735]
[1644615916722,15.3343,97.91,97.855,44.03220735]
[1644615918327,37.46746437,97.919,97.86,15.3322]
[1644615918523,15.3322,97.92,97.86,15.3322]
[1644615920630,5.107,97.919,97.86,15.3322]
[1644615921330,15.3336,97.91,97.85,15.334]
[1644615921627,67.789858,97.909,97.823,23.5037]
[1644615921828,7.49166791,97.909,97.794,5.108]
[1644615922039,2.38366791,97.908,97.795,46.4287]
[1644615922227,5.109,97.907,97.783,5.11]
[1644615922427,15.3376,97.89,97.79,15.3431]
[1644615922627,42.56266538,97.889,97.791,22.7396]
[1644615922833,51.1421,97.88,97.791,22.7396]
[1644615923030,5.11,97.879,97.791,22.7396]
[1644615923828,15.3427,97.86,97.79,15.3431]
[1644615924032,22.99568371,97.858,97.79,15.3431]
[1644615924229,18.397103,97.857,97.784,34.49782627]
[1644615924428,13.286103,97.856,97.784,34.49782627]
[1644615924629,5.111,97.855,97.784,34.49782627]
[1644615925028,5.111,97.857,97.784,34.49782627]
[1644615925831,15.3448,97.84,97.784,34.49782627]
[1644615928031,5.111,97.839,97.784,34.49782627]
[1644615928232,15.3452,97.83,97.784,34.49782627]
[1644615928434,5.112,97.829,97.784,34.49782627]
[1644615929233,5.112,97.829,97.784,29.49782627]
[1644615930734,5.112,97.829,97.772,24.4807]
[1644615930735,15.3472,97.82,97.772,24.4807]
[1644615930943,11.27677,97.819,97.751,5.112]
[1644615931137,11.27677,97.818,97.739,24.4668]
[1644615931337,5.113,97.817,97.739,24.4668]
[1644615931537,11.27677,97.816,97.739,24.4668]
[1644615931737,20.32217886,97.815,97.74,36.16074097]
[1644615932138,5.113,97.814,97.74,36.16074097]
[1644615932337,20.32217886,97.815,97.74,36.16074097]
[1644615932539,15.3492,97.81,97.74,51.51164097]
[1644615932739,5.113,97.809,97.74,51.51164097]
[1644615932939,5.113,97.814,97.74,51.51164097]
[1644615933740,15.3514,97.8,97.74,51.51164097]
[1644615934541,35.37427886,97.815,97.74,51.51164097]
[1644615934542,15.0521,97.815,97.74,51.51164097]
[1644615935647,5.113,97.814,97.74,51.51164097]
[1644615935844,15.3491,97.81,97.74,51.51164097]
[1644615937673,15.3491,97.81,97.741,5.113]
[1644615939578,56.2707,97.85,97.75,15.3494]
[1644615939777,15.4652,97.85,97.751,5.112]
[1644615939978,5.112,97.877,97.752,22.5325]
[1644615940177,5.112,97.853,97.753,5.111]
[1644615940378,36.99387739,97.852,97.753,7.49466791]
[1644615940580,15.3413,97.86,97.78,15.3433]
[1644615940777,68.25126791,97.89,97.78,15.3433]
[1644615940778,5.111,97.875,97.781,23.9063]
[1644615940980,5.11,97.888,97.781,29.0163]
[1644615941180,5.11,97.889,97.782,24.6632]
[1644615941387,5.11,97.889,97.783,5.11]
[1644615941578,47.95415494,97.888,97.784,45.25957989]
[1644615941778,5.11,97.887,97.785,5.11]
[1644615942780,15.3394,97.88,97.8,15.3385]
[1644615942981,5.11,97.879,97.802,43.45958132]
[1644615943181,5.11,97.886,97.802,43.45958132]
[1644615943382,5.11,97.887,97.802,43.45958132]
[1644615943581,2.38366791,97.886,97.802,43.45958132]
[1644615943783,5.11,97.885,97.802,43.45958132]
[1644615944686,15.3396,97.87,97.81,15.3392]
[1644615944890,22.60419415,97.869,97.81,15.3392]
[1644615947487,17.49419415,97.869,97.81,15.3392]
[1644615948488,15.3405,97.86,97.802,43.45958132]
[1644615948890,5.11,97.859,97.802,43.45958132]
[1644615949291,5.11,97.907,97.803,5.11]
[1644615949488,29.7801,97.909,97.803,5.11]
[1644615949888,15.3359,97.89,97.81,15.3393]
[1644615950089,18.46666595,97.889,97.81,15.3393]
[1644615950292,5.109,97.888,97.81,15.3393]
[1644615952591,18.46666595,97.889,97.811,5.109]
[1644615953994,15.3359,97.89,97.811,5.109]
[1644615954195,15.3359,97.89,97.82,15.3348]
[1644615954593,15.3344,97.9,97.821,5.109]
[1644615954793,15.3344,97.9,97.822,24.7875]
[1644615954993,15.3344,97.9,97.823,5.109]
[1644615955192,47.78090166,97.899,97.824,47.82041163]
[1644615955395,47.78090166,97.899,97.825,5.109]
[1644615956792,52.88990166,97.899,97.825,5.109]
[1644615957793,15.336,97.89,97.825,5.109]
[1644615957994,5.109,97.889,97.822,24.7875]
[1644615958193,5.109,97.897,97.822,24.7875]
[1644615958492,7.49266791,97.897,97.822,24.7875]
[1644615958695,2.38366791,97.897,97.822,24.7875]
[1644615958893,7.49266791,97.896,97.822,24.7875]
[1644615959094,2.38366791,97.896,97.822,24.7875]
[1644615959302,15.3382,97.88,97.822,24.7875]
[1644615959500,51.1273,97.9,97.822,24.7875]
[1644615959501,5.109,97.879,97.822,24.7875]
[1644615959695,5.109,97.897,97.822,24.7875]
[1644615959899,5.109,97.907,97.822,24.7875]
[1644615960096,2.38366791,97.909,97.822,24.7875]
[1644615960296,5.109,97.92,97.822,24.7875]
[1644615960297,15.3359,97.89,97.822,24.7875]
[1644615960707,26.31044414,97.889,97.822,24.7875]
[1644615961408,15.337,97.88,97.822,24.7875]
[1644615963727,30.9438,97.88,97.822,24.7875]
[1644615964530,18.117677,97.879,97.822,24.7875]
[1644615964727,15.3413,97.87,97.78,0.024]
[1644615964928,5.111,97.869,97.791,23.0022]
[1644615965127,5.11,97.877,97.791,23.0022]
[1644615965328,2.38366791,97.869,97.791,23.0022]
[1644615965533,49.35690495,97.868,97.792,48.07337725]
[1644615965728,15.3426,97.85,97.792,48.07337725]
[1644615965930,21.20144414,97.848,97.792,48.07337725]
[1644615966130,5.111,97.847,97.792,48.07337725]
[1644615967530,5.111,97.868,97.792,48.07337725]
[1644615967730,2.38366791,97.869,97.792,48.07337725]
[1644615967731,15.3432,97.84,97.792,48.07337725]
[1644615968231,5.111,97.839,97.792,48.07337725]
[1644615969032,15.3452,97.83,97.792,48.07337725]
[1644615969434,5.111,97.829,97.792,48.07337725]
[1644615969635,25.54765489,97.832,97.792,48.07337725]
[1644615969832,5.111,97.847,97.792,48.07337725]
[1644615970338,15.3459,97.84,97.792,48.07337725]
[1644615970533,5.111,97.839,97.792,48.07337725]
[1644615970739,5.111,97.846,97.792,48.07337725]
[1644615970938,42.54894163,97.845,97.78,0.024]
[1644615971139,47.65994163,97.845,97.771,23.2326]
[1644615971738,15.3462,97.83,97.771,23.2326]
[1644615971937,15.3462,97.83,97.772,40.67227976]
[1644615972537,22.89940746,97.829,97.772,40.67227976]
[1644615973338,15.3461,97.82,97.772,40.67227976]
[1644615973739,5.112,97.819,97.772,40.67227976]
[1644615973945,15.3461,97.82,97.772,40.67227976]
[1644615976242,5.112,97.819,97.772,40.67227976]
[1644615977441,15.3461,97.82,97.772,40.67227976]
[1644615979746,5.112,97.819,97.772,40.67227976]
[1644615980145,5.112,97.819,97.76,0.024]
[1644615980349,5.112,97.819,97.751,23.7057]
[1644615981144,5.112,97.819,97.752,34.79496305]
[1644615981344,15.3476,97.81,97.752,34.79496305]
[1644615981747,5.113,97.809,97.752,34.79496305]
[1644615983453,15.3495,97.8,97.751,23.7057]
[1644615983656,5.113,97.799,97.751,23.7057]
[1644615984054,7.49666791,97.81,97.751,23.7057]
[1644615984858,2.38366791,97.809,97.751,23.7057]
[1644615985056,5.113,97.808,97.751,23.7057]
[1644615985459,5.113,97.81,97.751,23.7057]
[1644615985756,15.3514,97.79,97.752,37.52073865]
[1644615986865,5.113,97.789,97.752,37.52073865]
[1644615989364,15.3523,97.78,97.752,37.52073865]
[1644615989664,5.114,97.779,97.752,37.52073865]
[1644615990680,5.114,97.779,97.735,1.44342601]
[1644615990881,5.114,97.779,97.734,1.44342601]
[1644615991080,15.3523,97.78,97.734,1.44342601]
[1644615991681,15.3523,97.78,97.733,1.44342601]
[1644615992083,15.3523,97.78,97.734,34.64243712]
[1644615993382,5.114,97.779,97.734,34.64243712]
[1644615993583,15.3523,97.78,97.734,34.64243712]
[1644615995287,15.3523,97.78,97.729,24.8226]
[1644615995488,5.114,97.779,97.72,0.024]
[1644615995686,15.3569,97.77,97.711,1.44342601]
[1644615995885,15.3569,97.77,97.7,0.024]
[1644615995886,15.3569,97.77,97.71,1.44342601]
[1644615996086,5.115,97.769,97.71,1.44342601]
[1644615996285,26.76284003,97.768,97.71,1.44342601]
[1644615996486,26.76284003,97.768,97.709,1.44342601]
[1644615996686,5.115,97.767,97.702,1.44342601]
[1644615996892,15.3574,97.76,97.704,1.44342601]
[1644615997087,5.115,97.759,97.7,1.46742601]
[1644615997286,5.115,97.759,97.691,1.44342601]
[1644615997487,2.38366791,97.758,97.7,0.024]
[1644615997687,7.49866791,97.758,97.7,0.024]
[1644615997890,2.38366791,97.758,97.7,0.024]
[1644615998088,2.38366791,97.757,97.685,1.44342601]
[1644615998288,15.3606,97.75,97.684,1.44342601]
[1644615998889,15.3606,97.75,97.682,1.44342601]
[1644615999087,42.71550884,97.749,97.683,41.12402493]
[1644615999287,15.3633,97.73,97.68,1.44342601]
[1644615999488,15.3633,97.73,97.67,0.024]
[1644615999489,5.117,97.729,97.674,1.44342601]
[1644615999894,2.38366791,97.728,97.66,0.024]
[1644616000087,13.273444,97.727,97.66,0.024]
[1644616000290,35.35150816,97.726,97.656,1.44342601]
[1644616000492,29.442877,97.725,97.656,1.44342601]
[1644616000688,15.3633,97.72,97.651,1.44342601]
[1644616000887,5.118,97.719,97.651,1.44342601]
[1644616001289,5.118,97.719,97.62,15.3667]
[1644616001290,27.415491,97.718,97.643,1.44342601]
[1644616001490,14.73,97.71,97.65,0.024]
[1644616001690,32.198997,97.709,97.63,0.024]
[1644616001889,32.198997,97.709,97.627,1.44342601]
[1644616001890,15.3681,97.7,97.64,0.024]
[1644616002089,27.080997,97.699,97.63,0.024]
[1644616002691,30.24416791,97.709,97.63,0.024]
[1644616002692,35.21484093,97.698,97.63,0.024]
[1644616002892,5.119,97.697,97.63,0.024]
[1644616003694,15.3703,97.68,97.63,0.024]
[1644616003894,30.23350816,97.678,97.622,42.89844855]
[1644616004196,5.12,97.677,97.622,42.89844855]
[1644616004394,5.12,97.699,97.622,42.89844855]
[1644616004894,7.50366791,97.699,97.622,42.89844855]
[1644616005097,47.58066046,97.697,97.622,42.89844855]
[1644616005294,5.119,97.696,97.622,42.89844855]
[1644616005497,7.50266791,97.696,97.622,42.89844855]
[1644616005697,15.3709,97.67,97.622,42.89844855]
[1644616005897,17.86768863,97.668,97.622,42.89844855]
[1644616006197,23.320589,97.667,97.61,0.024]
[1644616006397,5.12,97.667,97.61,0.024]
[1644616007296,5.12,97.675,97.61,0.024]
[1644616007796,15.3727,97.66,97.61,0.024]
[1644616007996,15.3727,97.66,97.609,44.78780469]
[1644616008199,5.12,97.675,97.609,44.78780469]
[1644616008395,5.12,97.689,97.609,68.10010469]
[1644616008595,5.12,97.694,97.61,5.144]
[1644616008999,14.73,97.7,97.61,5.144]
[1644616009197,38.13391063,97.699,97.62,0.024]
[1644616009397,43.25391063,97.699,97.62,15.3675]
[1644616009596,43.25391063,97.699,97.621,5.119]
[1644616009597,38.13391063,97.699,97.621,5.119]
[1644616009798,38.13391063,97.699,97.621,29.1664]
[1644616010806,15.3678,97.69,97.621,29.1664]
[1644616010997,15.3678,97.69,97.621,24.0474]
[1644616011198,15.3678,97.69,97.622,5.12]
[1644616011399,38.13391063,97.699,97.63,15.3661]
[1644616011601,38.13391063,97.699,97.631,38.00031718]
[1644616012799,5.119,97.698,97.631,38.00031718]
[1644616014607,5.119,97.699,97.631,38.00031718]
[1644616015804,34.79416674,97.709,97.64,15.3645]
[1644616016009,15.3645,97.71,97.64,15.3645]
[1644616016208,15.3645,97.71,97.64,15.3885]
[1644616016405,5.119,97.709,97.641,5.119]
[1644616016807,5.119,97.709,97.642,23.0232]
[1644616017007,15.3645,97.71,97.642,23.0232]
[1644616017207,5.118,97.709,97.642,23.0232]
[1644616017809,23.3133,97.729,97.642,23.0232]
[1644616018009,15.363,97.72,97.65,15.387]
[1644616018209,15.363,97.72,97.65,0.024]
[1644616018409,5.118,97.719,97.642,23.0232]
[1644616018611,5.118,97.726,97.642,23.0232]
[1644616018809,45.16434472,97.725,97.642,23.0232]
[1644616019009,5.118,97.724,97.642,23.0232]
[1644616019812,20.28400437,97.709,97.642,23.0232]
[1644616020410,5.118,97.708,97.642,23.0232]
[1644616021014,15.3658,97.7,97.642,23.0232]
[1644616021216,15.3658,97.7,97.63,15.3662]
[1644616021217,5.119,97.699,97.63,0.024]
[1644616021613,78.447356,97.698,97.63,0.024]
[1644616021814,137.10981964,97.698,97.61,0.024]
[1644616022014,51.08,97.696,97.59,0.024]
[1644616022212,5.12,97.695,97.61,0.024]
[1644616022415,14.73,97.68,97.61,0.024]
[1644616022612,20.70138985,97.679,97.61,0.024]
[1644616022814,15.3789,97.66,97.59,38.13356289]
[1644616023014,47.29767436,97.659,97.59,38.13356289]
[1644616023219,47.29767436,97.659,97.58,0.024]
[1644616023415,49.68134227,97.659,97.58,0.024]
[1644616023631,2.38366791,97.658,97.58,0.024]
[1644616023835,5.121,97.657,97.58,0.024]
[1644616024234,2.38366791,97.656,97.581,1.44342601]
[1644616024631,5.121,97.655,97.581,1.44342601]
[1644616024832,23.27167473,97.639,97.581,1.44342601]
[1644616025033,23.27167473,97.639,97.579,1.44342601]
[1644616025233,5.122,97.638,97.579,1.44342601]
[1644616025434,7.50566791,97.638,97.579,1.44342601]
[1644616025830,7.50566791,97.638,97.576,1.44342601]
[1644616025831,2.38366791,97.637,97.576,1.44342601]
[1644616026031,2.38366791,97.637,97.54,15.3803]
[1644616026032,5.122,97.636,97.568,1.44342601]
[1644616026233,5.122,97.636,97.564,45.26838603]
[1644616026436,7.50566791,97.636,97.565,1.44342601]
[1644616026632,2.38366791,97.636,97.565,1.44342601]
[1644616026834,15.3799,97.63,97.565,1.44342601]
[1644616027635,15.3799,97.63,97.568,1.44342601]
[1644616027837,5.123,97.629,97.57,1.44342601]
[1644616028037,15.3799,97.62,97.571,1.44342601]
[1644616028238,42.17667436,97.619,97.571,1.44342601]
[1644616028436,42.17667436,97.619,97.564,45.26838603]
[1644616028437,47.29967436,97.619,97.569,1.44342601]
[1644616028636,5.123,97.619,97.568,1.44342601]
[1644616029040,15.3802,97.61,97.568,1.44342601]
[1644616029240,5.123,97.635,97.572,1.44342601]
[1644616029438,5.123,97.639,97.575,1.44342601]
[1644616029644,40.85215794,97.638,97.576,1.44342601]
[1644616030039,40.85215794,97.638,97.574,1.44342601]
[1644616030239,5.122,97.637,97.57,1.46742601]
[1644616030442,5.122,97.637,97.571,1.44342601]
[1644616030640,5.122,97.637,97.573,1.44342601]
[1644616030842,15.3782,97.62,97.575,1.44342601]
[1644616031243,5.123,97.619,97.575,1.44342601]
[1644616032543,5.123,97.619,97.574,1.44342601]
[1644616032741,5.123,97.619,97.571,1.44342601]
[1644616033341,36.67050249,97.619,97.571,1.44342601]
[1644616033543,15.3782,97.62,97.57,1.44342601]
[1644616033744,15.3782,97.62,97.572,1.44342601]
[1644616033944,15.3782,97.62,97.57,1.44342601]
[1644616034146,15.3782,97.62,97.571,1.44342601]
[1644616034746,15.3782,97.62,97.565,22.6129]
[1644616034747,15.3782,97.62,97.57,1.44342601]
[1644616035945,15.3782,97.62,97.567,1.44342601]
[1644616036147,5.123,97.619,97.566,1.44342601]
[1644616036346,15.3809,97.61,97.566,1.44342601]
[1644616036544,15.3809,97.61,97.562,1.44342601]
[1644616036751,5.123,97.609,97.551,1.44342601]
[1644616036945,61.69645869,97.608,97.551,1.44342601]
[1644616037146,66.098794,97.607,97.55,0.024]
[1644616037346,15.3842,97.6,97.535,5.123]
[1644616037545,37.739527,97.599,97.535,5.123]
[1644616037747,7.50766791,97.599,97.535,5.123]
[1644616038146,2.38366791,97.598,97.535,5.123]
[1644616038347,5.124,97.597,97.535,5.123]
[1644616038847,15.3875,97.58,97.535,5.123]
[1644616039047,5.125,97.579,97.52,0.024]
[1644616039251,5.125,97.579,97.519,1.44342601]
[1644616039450,38.4932994,97.578,97.519,1.44342601]
[1644616039647,43.6182994,97.578,97.52,1.44342601]
[1644616039848,38.4932994,97.578,97.521,45.70221451]
[1644616040058,38.4932994,97.578,97.527,1.44342601]
[1644616040347,38.4932994,97.578,97.526,1.44342601]
[1644616040550,5.125,97.577,97.518,1.44342601]
[1644616040753,5.125,97.577,97.517,1.44342601]
[1644616040950,5.125,97.577,97.52,1.44342601]
[1644616041350,5.125,97.577,97.521,1.44342601]
[1644616041650,5.125,97.577,97.52,1.44342601]
[1644616042049,5.125,97.577,97.519,1.44342601]
[1644616042249,5.125,97.577,97.518,1.44342601]
[1644616042450,5.125,97.577,97.516,1.44342601]
[1644616042649,5.125,97.577,97.515,1.44342601]
[1644616043859,5.125,97.577,97.516,1.44342601]
[1644616044060,5.125,97.577,97.522,1.44342601]
[1644616044555,5.125,97.577,97.519,1.44342601]
[1644616044759,5.125,97.577,97.523,1.44342601]
[1644616046357,15.3869,97.57,97.513,46.20158831]
[1644616046557,5.126,97.569,97.513,46.20158831]
[1644616046757,5.126,97.569,97.515,1.44342601]
[1644616046959,5.126,97.569,97.514,1.44342601]
[1644616047561,5.126,97.569,97.517,1.44342601]
[1644616047758,5.126,97.569,97.518,48.31004828]
[1644616047958,5.126,97.569,97.518,1.44342601]
[1644616048361,5.126,97.569,97.517,1.44342601]
[1644616048559,5.126,97.569,97.519,1.44342601]
[1644616048760,38.4932994,97.578,97.522,1.44342601]
[1644616048960,5.126,97.577,97.523,34.52873747]
[1644616049159,5.125,97.599,97.523,34.52873747]
[1644616049362,5.125,97.599,97.53,0.024]
[1644616049564,5.124,97.609,97.536,1.44342601]
[1644616049760,5.124,97.598,97.547,1.44342601]
[1644616049962,15.379,97.62,97.554,1.44342601]
[1644616050161,15.379,97.62,97.553,1.44342601]
[1644616050162,38.51114219,97.619,97.553,1.44342601]
[1644616050461,5.123,97.619,97.556,1.44342601]
[1644616050662,5.123,97.619,97.557,1.44342601]
[1644616050861,5.123,97.619,97.556,1.44342601]
[1644616051061,5.123,97.619,97.557,1.44342601]
[1644616051465,5.123,97.619,97.556,1.44342601]
[1644616051862,5.123,97.619,97.557,1.44342601]
[1644616052263,5.123,97.619,97.558,1.44342601]
[1644616052465,15.379,97.62,97.558,1.44342601]
[1644616052663,15.379,97.62,97.56,1.44342601]
[1644616052964,15.379,97.62,97.561,1.44342601]
[1644616053165,15.379,97.62,97.563,1.44342601]
[1644616053366,15.379,97.62,97.564,35.0795588]
[1644616053567,5.123,97.619,97.564,36.52298481]
[1644616053767,5.123,97.619,97.565,1.44342601]
[1644616053966,11.254158,97.618,97.565,1.44342601]
[1644616054170,5.123,97.617,97.565,1.44342601]
[1644616054376,5.123,97.617,97.564,35.0795588]
[1644616054775,5.123,97.619,97.564,35.0795588]
[1644616055674,5.123,97.619,97.564,27.5795588]
[1644616057792,15.3799,97.61,97.558,1.44342601]
[1644616057993,23.601692,97.609,97.558,1.44342601]
[1644616058196,25.98535991,97.609,97.55,0.024]
[1644616058394,2.38366791,97.608,97.55,0.024]
[1644616058594,5.124,97.607,97.55,0.024]
[1644616058795,38.42838152,97.606,97.543,38.74021181]
[1644616059000,5.124,97.605,97.543,38.74021181]
[1644616059803,15.3822,97.6,97.543,38.74021181]
[1644616060005,15.3822,97.6,97.542,23.5796]
[1644616060203,5.124,97.599,97.53,0.024]
[1644616060402,7.50766791,97.599,97.525,1.44342601]
[1644616060601,7.50766791,97.599,97.524,1.44342601]
[1644616060802,7.50766791,97.599,97.521,1.44342601]
[1644616061002,7.50766791,97.599,97.522,40.79243808]
[1644616061196,7.50766791,97.599,97.523,22.7499]
[1644616061799,34.51996757,97.589,97.523,22.7499]
[1644616061998,5.125,97.588,97.523,22.7499]
[1644616062199,5.125,97.588,97.525,1.44342601]
[1644616063199,5.125,97.588,97.526,1.44342601]
[1644616063600,2.38366791,97.587,97.526,1.44342601]
[1644616063799,15.3846,97.58,97.527,1.44342601]
[1644616063999,5.125,97.579,97.527,1.44342601]
[1644616064600,15.3846,97.58,97.528,1.44342601]
[1644616064802,15.3846,97.58,97.53,1.44342601]
[1644616065000,15.3846,97.58,97.525,1.44342601]
[1644616065203,34.51996757,97.589,97.525,1.44342601]
[1644616065401,34.51996757,97.589,97.527,1.44342601]
[1644616065600,34.51996757,97.589,97.532,1.44342601]
[1644616066403,34.51996757,97.589,97.533,1.44342601]
[1644616066805,34.51996757,97.589,97.525,1.05538156]
[1644616066806,34.51996757,97.589,97.535,1.44342601]
[1644616067003,5.125,97.588,97.536,1.44342601]
[1644616067204,15.3844,97.58,97.536,1.44342601]
[1644616067405,5.125,97.579,97.536,1.44342601]
[1644616068405,5.125,97.579,97.535,1.44342601]
[1644616068808,34.51996757,97.589,97.535,1.44342601]
[1644616069006,34.51996757,97.589,97.538,1.44342601]
[1644616069206,34.51996757,97.589,97.539,1.44342601]
[1644616069408,5.125,97.588,97.539,1.44342601]
[1644616070007,5.125,97.588,97.538,1.44342601]
[1644616070207,5.125,97.588,97.53,15.3825]
[1644616070208,5.125,97.588,97.539,1.44342601]
[1644616070609,5.125,97.588,97.542,1.44342601]
[1644616070808,34.51996757,97.589,97.543,1.44342601]
[1644616071009,34.51996757,97.589,97.543,40.96860438]
[1644616071210,15.3831,97.59,97.543,40.96860438]
[1644616072012,15.3831,97.59,97.544,1.44342601]
[1644616072212,15.3831,97.59,97.543,39.52517837]
[1644616072213,35.7796693,97.589,97.543,39.52517837]
[1644616072416,35.7796693,97.589,97.535,1.05400494]
[1644616072616,5.124,97.588,97.535,1.05400494]
[1644616072816,35.7796693,97.589,97.535,1.05400494]
[1644616074318,5.124,97.588,97.535,1.05400494]
[1644616075018,5.124,97.588,97.53,16.82592601]
[1644616075419,5.124,97.588,97.53,15.3825]
[1644616075621,15.3841,97.58,97.53,15.3825]
[1644616075822,5.125,97.579,97.53,15.3825]
[1644616076020,5.125,97.579,97.523,24.19332601]
[1644616076218,5.125,97.586,97.523,24.19332601]
[1644616076418,5.125,97.586,97.523,22.7499]
[1644616077019,15.3859,97.57,97.523,22.7499]
[1644616077223,5.125,97.588,97.523,22.7499]
[1644616077419,35.7796693,97.589,97.523,22.7499]
[1644616077420,35.7796693,97.589,97.531,1.44342601]
[1644616077619,5.125,97.587,97.531,1.44342601]
[1644616077819,5.125,97.588,97.532,1.44342601]
[1644616078020,5.125,97.586,97.536,10.0200212]
[1644616078223,5.125,97.588,97.537,47.40161526]
[1644616078420,35.7796693,97.589,97.537,47.40161526]
[1644616078820,35.7796693,97.589,97.539,1.44342601]
[1644616079220,5.124,97.588,97.539,1.44342601]
[1644616079619,5.124,97.588,97.54,1.44342601]
[1644616079820,5.124,97.588,97.54,16.82542601]
[1644616080119,5.124,97.588,97.541,1.44342601]
[1644616080731,5.124,97.599,97.541,1.44342601]
[1644616080926,5.124,97.599,97.55,15.3807]
[1644616081126,5.124,97.599,97.541,1.44342601]
[1644616081333,15.3822,97.59,97.538,24.20522601]
[1644616081529,43.2552707,97.589,97.541,10.0200212]
[1644616081727,48.3792707,97.589,97.541,10.0200212]
[1644616082328,15.3837,97.58,97.541,10.0200212]
[1644616082530,5.125,97.579,97.541,10.0200212]
[1644616082729,5.125,97.579,97.541,9.5200212]
[1644616085332,5.125,97.579,97.539,9.5200212]
[1644616085933,15.3855,97.57,97.539,9.5200212]
[1644616086335,5.125,97.569,97.539,9.5200212]
[1644616086936,29.69307839,97.568,97.539,9.5200212]
[1644616087133,5.125,97.567,97.539,9.5200212]
[1644616087935,5.125,97.567,97.534,1.44342601]
[1644616088240,5.125,97.567,97.535,1.44342601]
[1644616088435,5.125,97.567,97.531,1.44342601]
[1644616088636,5.125,97.567,97.53,1.44342601]
[1644616089035,5.125,97.567,97.531,1.44342601]
[1644616089241,29.69307839,97.568,97.531,1.44342601]
[1644616089436,5.125,97.567,97.53,1.44342601]
[1644616089738,15.3866,97.56,97.531,1.44342601]
[1644616090035,15.3866,97.56,97.532,1.44342601]
[1644616090237,15.3866,97.56,97.531,1.44342601]
[1644616090435,15.3866,97.56,97.525,9.5200212]
[1644616090436,5.125,97.559,97.528,1.44342601]
[1644616090636,5.125,97.559,97.527,1.44342601]
[1644616091037,15.3883,97.55,97.527,1.44342601]
[1644616091238,5.126,97.549,97.521,9.5200212]
[1644616091438,5.126,97.567,97.521,9.5200212]
[1644616091640,51.3019,97.56,97.521,9.5200212]
[1644616091838,5.126,97.559,97.521,9.5200212]
[1644616092237,15.3901,97.54,97.521,9.5200212]
[1644616092437,43.2552707,97.539,97.521,9.5200212]
[1644616092638,5.126,97.538,97.521,9.5200212]
[1644616092838,43.2552707,97.539,97.521,9.5200212]
[1644616093445,5.126,97.538,97.521,9.5200212]